fUSD/lending_fUSD_20260329
["ID","MTS","AMOUNT","RATE_DAILY","PERIOD"]
[419022925,1774770645184,-315328.9156384,0.0001386,2]
[419022926,1774770645194,-4142.0112638,0.0001386,2]
[419022927,1774770645204,-2742.4560245,0.0001386,2]
[419022928,1774770645213,-3364.8442764,0.0001386,2]
[419022929,1774770645222,-256.111678,0.0001386,2]
[419022931,1774770645232,-151.0,0.0001386,2]
[419022932,1774770645241,-151.0,0.0001386,2]
[419022933,1774770645250,-151.0,0.0001386,2]
[419022934,1774770645260,-151.0,0.0001386,2]
[419022935,1774770645269,-347.489172,0.0001386,2]
[419022936,1774770645279,-347.489172,0.0001386,2]
[419022938,1774770645288,-347.489172,0.0001386,2]
[419022939,1774770645297,-347.489172,0.0001386,2]
[419022940,1774770645306,-151.0,0.0001386,2]
[419022941,1774770645315,-491.74224,0.0001386,2]
[419022942,1774770645324,-491.74224,0.0001386,2]
[419022944,1774770645334,-491.74224,0.0001386,2]
[419022946,1774770645343,-491.74224,0.0001386,2]
[419022948,1774770645352,-500.0,0.00013873,2]
[419022950,1774770645361,-500.0,0.00013873,2]
[419022952,1774770645370,-500.0,0.00013873,2]
[419022954,1774770645379,-500.0,0.00013873,2]
[419022956,1774770645388,-500.0,0.00013873,2]
[419022958,1774770645397,-285.70561794,0.00013873,2]
[419022960,1774770645406,-500.0,0.00013873,2]
[419022962,1774770645416,-500.0,0.00013873,2]
[419022964,1774770645424,-500.0,0.00013873,2]
[419022965,1774770645433,-500.0,0.00013873,2]
[419022966,1774770645443,-403.83679365,0.00013873,2]
[419022967,1774770645451,-500.0,0.00013873,2]
[419022968,1774770645460,-500.0,0.00013873,2]
[419022969,1774770645472,-500.0,0.00013873,2]
[419022970,1774770645482,-500.0,0.00013873,2]
[419022971,1774770645492,-500.0,0.00013873,2]
[419022972,1774770645502,-500.0,0.00013873,2]
[419022973,1774770645511,-395.74377257,0.00013873,2]
[419022974,1774770645521,-500.0,0.00013873,2]
[419022975,1774770645530,-500.0,0.00013873,2]
[419022976,1774770645539,-501.14424675,0.00013873,2]
[419022977,1774770645549,-500.0,0.00013873,2]
[419022978,1774770645559,-500.0,0.00013873,2]
[419022979,1774770645568,-500.0,0.00013873,2]
[419022980,1774770645578,-500.0,0.00013873,2]
[419022981,1774770645587,-500.0,0.00013873,2]
[419022982,1774770645597,-501.85734539,0.00013873,2]
[419022983,1774770645607,-500.942655,0.00013873,2]
[419022984,1774770645616,-500.0,0.00013873,2]
[419022985,1774770645626,-560.70514656,0.00013873,2]
[419022986,1774770645635,-500.0,0.00013873,2]
[419022987,1774770645645,-502.54797101,0.00013873,2]
[419022988,1774770645654,-500.0,0.00013873,2]
[419022989,1774770645664,-502.75954762,0.00013873,2]
[419022990,1774770645675,-500.0,0.00013873,2]
[419022991,1774770645685,-500.0,0.00013873,2]
[419022992,1774770645694,-500.0,0.00013873,2]
[419022993,1774770645703,-1153.0,0.00013881,2]
[419022994,1774770645715,-155.0,0.00013886,2]
[419022995,1774770645726,-10900.0,0.000139,5]
[419022996,1774770645736,-1153.0,0.00013928,2]
[419022997,1774770645746,-151.0,0.00013932,2]
[419022998,1774770645755,-151.0,0.00013932,2]
[419022999,1774770645764,-22153.64477387,0.00013932,2]
[419023000,1774770645774,-22321.97275184,0.00013932,2]
[419023001,1774770645783,-150.0,0.00013973,2]
[419023002,1774770645792,-350.0,0.00014,2]
[419023003,1774770645802,-513.0,0.00014,2]
[419023004,1774770645812,-22630.77451371,0.00014006,2]
[419023005,1774770645822,-17020.17601531,0.0001401,2]
[419023006,1774770645831,-2000.0,0.0001401,2]
[419023007,1774770645842,-2000.0,0.0001401,2]
[419023008,1774770645851,-1153.0,0.00014018,2]
[419023009,1774770645860,-2000.0,0.0001403,2]
[419023010,1774770645869,-200.0,0.00014033,2]
[419023011,1774770645879,-200.0,0.00014034,2]
[419023012,1774770645889,-500.0,0.00014055,2]
[419023013,1774770645898,-4486.0,0.0001407,2]
[419023014,1774770645908,-189.33,0.00014128,2]
[419023015,1774770645917,-250.0,0.00014137,3]
[419023016,1774770645927,-151.0,0.00014147,2]
[419023017,1774770645936,-200.0,0.00014147,2]
[419023018,1774770645946,-1000.0,0.00014147,2]
[419023019,1774770645957,-1000.0,0.00014147,2]
[419023020,1774770645967,-1000.0,0.00014147,2]
[419023021,1774770645977,-1000.0,0.00014147,2]
[419023022,1774770645986,-1000.0,0.00014147,2]
[419023023,1774770645996,-1148.47792248,0.00014147,2]
[419023024,1774770646006,-201.20563837,0.00014147,2]
[419023025,1774770646015,-2000.0,0.00014147,2]
[419023026,1774770646024,-2000.0,0.00014147,2]
[419023027,1774770646034,-2000.0,0.00014147,2]
[419023028,1774770646044,-152.0,0.00014147,3]
[419023029,1774770646054,-959.8630956,0.00014151,2]
[419023030,1774770646063,-160.0,0.00014151,2]
[419023031,1774770646073,-498.60320131,0.00014157,2]
[419023032,1774770646082,-250.0,0.00014165,2]
[419023034,1774770646092,-159.19,0.000142,2]
[419023035,1774770646103,-150.0,0.00014247,2]
[419023036,1774770646113,-16184.2126563,0.0001425,2]
[419023037,1774770646123,-350.0,0.00014269,2]
[419023038,1774770646132,-200.0,0.00014288,2]
[419023039,1774770646142,-4486.0,0.00014292,2]
[419023040,1774770646152,-4486.0,0.00014295,2]
[419023041,1774770646162,-3000.0,0.00014312,2]
[419023042,1774770646171,-3000.0,0.00014312,2]
[419023043,1774770646183,-350.0,0.00014319,2]
[419023044,1774770646192,-2626.86702887,0.00014321,2]
[419023045,1774770646202,-201.93286099,0.00014329,2]
[419023046,1774770646211,-2303.0,0.00014382,2]
[419023047,1774770646221,-1557.71,0.00014384,2]
[419023048,1774770646231,-192.03,0.00014387,2]
[419023049,1774770646240,-312.0,0.000144,2]
[419023050,1774770646250,-192.7277889,0.00014414,2]
[419023051,1774770646259,-1153.0,0.00014417,2]
[419023052,1774770646268,-1000.0,0.00014421,2]
[419023053,1774770646278,-1000.0,0.00014421,2]
[419023054,1774770646287,-1000.0,0.00014421,2]
[419023055,1774770646296,-1000.0,0.00014421,2]
[419023056,1774770646305,-1000.0,0.00014421,2]
[419023057,1774770646315,-502.79991996,0.00014421,2]
[419023058,1774770646324,-1000.0,0.00014421,2]
[419023059,1774770646333,-1000.0,0.00014421,2]
[419023060,1774770646344,-1000.0,0.00014421,2]
[419023061,1774770646353,-1000.0,0.00014421,2]
[419023062,1774770646364,-375.33809542,0.00014421,2]
[419023063,1774770646373,-875.52475925,0.00014421,2]
[419023064,1774770646382,-1000.0,0.00014421,2]
[419023065,1774770646392,-1001.93595121,0.00014421,2]
[419023066,1774770646402,-1000.0,0.00014421,2]
[419023067,1774770646411,-1000.0,0.00014421,2]
[419023068,1774770646421,-1000.0,0.00014421,2]
[419023069,1774770646430,-99.64507648,0.00014421,2]
[419023070,1774770646446,-580.99564349,0.00014421,2]
[419023071,1774770646456,-1000.0,0.00014421,2]
[419023073,1774770646466,-1000.0,0.00014421,2]
[419023075,1774770646476,-501.59919697,0.00014421,2]
[419023082,1774770646569,-1001.59458687,0.00014421,2]
[419023083,1774770646579,-1000.0,0.00014421,2]
[419023084,1774770646588,-558.51253909,0.00014421,2]
[419023085,1774770646600,-441.48746091,0.00014421,2]
[419023086,1774770646610,-1000.0,0.00014421,2]
[419023087,1774770646619,-413.21253908,0.00014421,2]
[419023088,1774770646679,-151.0,0.00012136,2]
[419023089,1774770646690,-293.58999998,0.00014421,2]
[419023090,1774770646706,-295.15973677,0.00014421,2]
[419023091,1774770646716,-1000.0,0.00014421,2]
[419023092,1774770646726,-391.87457693,0.00014421,2]
[419023093,1774770646735,-799.74673549,0.00014424,2]
[419023094,1774770646745,-22153.64477387,0.00014424,2]
[419023095,1774770646754,-10428.27667004,0.00014424,2]
[419023096,1774770646766,-1085.07956471,0.00014424,2]
[419023100,1774770927624,188.00813207,0.00010621,30]
[419023101,1774771057077,10000.0,0.00010509,2]
[419023102,1774771089193,0.01,0.00010509,2]
[419023103,1774771089218,9999.99,0.00010509,2]
[419023104,1774771230876,188.00813205,0.00010621,30]
[419023108,1774771611661,155.93,5.628e-05,2]
[419023109,1774771611854,155.93,6.253e-05,2]
[419023110,1774771612069,155.93,6.879e-05,2]
[419023111,1774771612278,155.93,7.504e-05,2]
[419023112,1774771612453,155.93,8.13e-05,2]
[419023113,1774771612640,155.93,8.755e-05,2]
[419023114,1774771612824,155.93,9.38e-05,2]
[419023115,1774771613006,155.93,0.00010006,2]
[419023116,1774771658350,605.22327867,8e-05,2]
[419023117,1774771723884,205.0,9.8e-05,2]
[419023119,1774771808131,7942.34672133,9.5e-05,3]
[419023120,1774771808155,10000.01,9.5e-05,3]
[419023121,1774771808179,10000.01,9.5e-05,3]
[419023122,1774771808202,10000.01,9.5e-05,3]
[419023123,1774771808226,10000.01,9.5e-05,3]
[419023124,1774771808250,10000.01,9.5e-05,3]
[419023125,1774771808273,10000.01,9.5e-05,3]
[419023126,1774771808297,10000.01,9.5e-05,3]
[419023127,1774771808320,10000.01,9.5e-05,3]
[419023128,1774771808344,4029.44046947,9.5e-05,3]
[419023140,1774771831779,-250.7070206,0.00010621,2]
[419023141,1774771831791,-78.0124794,0.00010621,2]
[419023142,1774771831801,-151.18176171,0.00010621,2]
[419023143,1774771831811,-155.93,0.00010631,2]
[419023144,1774771831820,-300.0,0.00010999,2]
[419023145,1774771831829,-327.32575889,0.00010999,2]
[419023146,1774771831841,-872.67424111,0.00010999,2]
[419023147,1774771831851,-716.36679213,0.00011,2]
[419023148,1774771831862,-7011.15954504,0.00011,2]
[419023149,1774771831908,-1758.88630873,0.00011,2]
[419023150,1774771831918,-500.0,0.00011097,2]
[419023151,1774771831928,-155.93,0.00011256,2]
[419023152,1774771831937,-150.0,0.00011682,2]
[419023153,1774771831946,-250.0,0.00011683,2]
[419023154,1774771831956,-166.66,0.00011773,2]
[419023155,1774771831965,-208.0,0.00011897,2]
[419023156,1774771831974,-204.0,0.00011951,2]
[419023157,1774771831983,-879.5849,0.00012004,2]
[419023158,1774771831992,-10009.65075249,0.00012004,2]
[419023159,1774771832002,-1209.0,0.0001204,2]
[419023160,1774771832011,-151.0,0.00012052,2]
[419023161,1774771832021,-151.0,0.00012052,2]
[419023162,1774771832031,-2922.6,0.00012055,2]
[419023163,1774771832040,-8066.75,0.00012083,2]
[419023165,1774771832049,-420.0,0.00012087,2]
[419023167,1774771832058,-1680.0,0.00012099,2]
[419023169,1774771832067,-150.0,0.00012101,2]
[419023171,1774771832076,-16522.86,0.00012102,2]
[419023172,1774771832085,-500.0,0.00012102,2]
[419023175,1774771832094,-500.0,0.00012102,2]
[419023178,1774771832104,-500.0,0.00012102,2]
[419023181,1774771832113,-500.0,0.00012102,2]
[419023183,1774771832122,-500.0,0.00012102,2]
[419023185,1774771832131,-500.0,0.00012102,2]
[419023187,1774771832140,-500.0,0.00012102,2]
[419023189,1774771832149,-500.0,0.00012102,2]
[419023191,1774771832158,-500.0,0.00012102,2]
[419023193,1774771832167,-500.0,0.00012102,2]
[419023195,1774771832176,-500.0,0.00012102,2]
[419023197,1774771832185,-500.0,0.00012102,2]
[419023199,1774771832194,-500.0,0.00012102,2]
[419023201,1774771832204,-500.0,0.00012102,2]
[419023203,1774771832213,-500.0,0.00012102,2]
[419023205,1774771832223,-500.0,0.00012102,2]
[419023207,1774771832232,-500.0,0.00012102,2]
[419023208,1774771832241,-500.0,0.00012102,2]
[419023209,1774771832250,-500.0,0.00012102,2]
[419023210,1774771832259,-500.0,0.00012102,2]
[419023211,1774771832269,-500.0,0.00012102,2]
[419023212,1774771832278,-500.0,0.00012102,2]
[419023213,1774771832287,-500.0,0.00012102,2]
[419023214,1774771832296,-500.0,0.00012102,2]
[419023215,1774771832305,-500.0,0.00012102,2]
[419023216,1774771832314,-500.0,0.00012102,2]
[419023217,1774771832323,-500.0,0.00012102,2]
[419023218,1774771832333,-500.0,0.00012102,2]
[419023219,1774771832342,-500.0,0.00012102,2]
[419023220,1774771832351,-500.0,0.00012102,2]
[419023221,1774771832360,-500.0,0.00012102,2]
[419023222,1774771832371,-558.52253923,0.00012102,2]
[419023223,1774771832380,-500.0,0.00012102,2]
[419023224,1774771832389,-500.0,0.00012102,2]
[419023225,1774771832399,-500.0,0.00012102,2]
[419023226,1774771832408,-500.0,0.00012102,2]
[419023227,1774771832417,-500.0,0.00012102,2]
[419023228,1774771832428,-650.0,0.00012102,2]
[419023229,1774771832437,-188.00813207,0.00012103,30]
[419023230,1774771832447,-12630.29,0.00012103,2]
[419023231,1774771832456,-299.99,0.00012103,2]
[419023232,1774771832466,-4467.97,0.00012103,2]
[419023233,1774771832475,-62614.67,0.00012103,2]
[419023234,1774771832486,-9999.99,0.00012103,2]
[419023235,1774771832497,-150.99,0.00012103,2]
[419023236,1774771832507,-999.99,0.00012103,2]
[419023237,1774771832516,-431.27,0.00012103,2]
[419023238,1774771832525,-9999.99,0.00012103,2]
[419023239,1774771832536,-1551.17,0.00012103,2]
[419023240,1774771832547,-2174.58,0.00012103,2]
[419023241,1774771832557,-5683.42,0.00012103,2]
[419023242,1774771832566,-155.42,0.00012158,2]
[419023243,1774771832576,-188.00813207,0.00012158,30]
[419023244,1774771832588,-166.66,0.00012161,2]
[419023245,1774771832598,-500.0,0.00012173,2]
[419023246,1774771832608,-500.0,0.00012173,2]
[419023247,1774771832618,-347.48373868,0.00012173,2]
[419023248,1774771832628,-500.0,0.00012173,2]
[419023249,1774771832637,-500.0,0.00012173,2]
[419023250,1774771832646,-500.0,0.00012173,2]
[419023251,1774771832655,-500.0,0.00012173,2]
[419023252,1774771832665,-151.0,0.00012211,2]
[419023253,1774771832674,-151.0,0.00012211,2]
[419023254,1774771832683,-188.00813207,0.00012228,30]
[419023255,1774771832692,-10009.65075244,0.00012258,2]
[419023256,1774771832702,-500.0,0.00012283,2]
[419023257,1774771832713,-506.75169863,0.00012283,2]
[419023258,1774771832723,-184.75,0.00012295,2]
[419023259,1774771832732,-500.0,0.00012376,2]
[419023260,1774771832742,-11042.6124,0.00012458,2]
[419023261,1774771832751,-150.0,0.000125,2]
[419023262,1774771832760,-10009.65075244,0.00012512,2]
[419023263,1774771832770,-500.0,0.00012533,2]
[419023264,1774771832779,-500.0,0.00012533,2]
[419023265,1774771832789,-500.0,0.00012533,2]
[419023266,1774771832797,-500.0,0.00012533,2]
[419023267,1774771832807,-500.0,0.00012533,2]
[419023268,1774771832816,-500.0,0.00012533,2]
[419023269,1774771832825,-500.0,0.00012533,2]
[419023270,1774771832834,-500.0,0.00012533,2]
[419023271,1774771832843,-500.0,0.00012533,2]
[419023272,1774771832852,-352.89483159,0.00012533,2]
[419023273,1774771832861,-500.0,0.00012533,2]
[419023274,1774771832870,-500.0,0.00012533,2]
[419023275,1774771832880,-500.0,0.00012533,2]
[419023276,1774771832888,-500.0,0.00012533,2]
[419023277,1774771832897,-500.0,0.00012533,2]
[419023278,1774771832907,-500.0,0.00012533,2]
[419023279,1774771832916,-500.0,0.00012533,2]
[419023280,1774771832925,-500.0,0.00012533,2]
[419023281,1774771832935,-500.0,0.00012533,2]
[419023282,1774771832944,-500.0,0.00012533,2]
[419023283,1774771832953,-151.0,0.00012533,2]
[419023284,1774771832962,-500.0,0.00012533,2]
[419023285,1774771832972,-174.61919141,0.00012533,2]
[419023286,1774771832981,-250.0,0.00012533,2]
[419023287,1774771832990,-250.0,0.00012533,2]
[419023288,1774771832999,-250.0,0.00012533,2]
[419023289,1774771833009,-283.53969794,0.00012533,2]
[419023290,1774771833018,-262.90206542,0.00012533,2]
[419023291,1774771833029,-166.66,0.0001255,2]
[419023292,1774771833039,-500.0,0.00012588,2]
[419023293,1774771833049,-151.0,0.00012588,2]
[419023294,1774771833059,-272.62944185,0.00012588,2]
[419023295,1774771833174,-500.0,0.00012643,2]
[419023296,1774771833184,-151.0,0.00012643,2]
[419023297,1774771833195,-282.71673119,0.00012643,2]
[419023298,1774771833206,-500.0,0.0001265,2]
[419023299,1774771833215,-500.0,0.00012698,2]
[419023300,1774771833225,-151.0,0.00012698,2]
[419023301,1774771833235,-293.17725025,0.00012698,2]
[419023302,1774771833244,-698.39780813,0.00012721,2]
[419023303,1774771833253,-503.0948792,0.00012721,2]
[419023304,1774771833263,-1000.0,0.00012721,2]
[419023305,1774771833272,-1000.0,0.00012721,2]
[419023306,1774771833282,-1000.0,0.00012721,2]
[419023307,1774771833291,-1000.0,0.00012721,2]
[419023308,1774771833300,-500.0,0.00012753,2]
[419023309,1774771833310,-151.0,0.00012753,2]
[419023310,1774771833319,-304.02480851,0.00012753,2]
[419023311,1774771833330,-10009.65075244,0.00012766,2]
[419023312,1774771833339,-500.0,0.00012808,2]
[419023313,1774771833348,-151.0,0.00012808,2]
[419023314,1774771833359,-299.38223695,0.00012808,2]
[419023315,1774771833368,-500.0,0.00012863,2]
[419023316,1774771833377,-151.0,0.00012863,2]
[419023317,1774771833388,-2500.0,0.00012873,2]
[419023318,1774771833397,-20710.18,0.00012893,2]
[419023319,1774771833406,-6291.95,0.00012893,2]
[419023320,1774771833415,-500.0,0.00012918,2]
[419023321,1774771833424,-151.0,0.00012918,2]
[419023322,1774771833433,-500.0,0.00012924,2]
[419023323,1774771833443,-166.66,0.00012939,2]
[419023324,1774771833452,-500.0,0.00012973,2]
[419023325,1774771833463,-151.0,0.00012973,2]
[419023326,1774771833474,-48315.43650843,0.00012999,2]
[419023327,1774771833492,-9901.82357404,0.00012999,2]
[419023333,1774771837765,-355.710055,0.00012999,2]
[419023334,1774771837947,-259.82172,0.00011507,2]
[419023335,1774771837976,-591.64828,0.00011507,2]
[419023336,1774771837986,-74144.05306668,0.00012999,2]
[419023337,1774771837997,-250.0,0.00013,2]
[419023338,1774771838006,-1523.32620652,0.00013,2]
[419023339,1774771838016,-10009.65075244,0.0001302,2]
[419023340,1774771838025,-500.0,0.00013028,2]
[419023341,1774771838035,-151.0,0.00013028,2]
[419023342,1774771838044,-5386.55943856,0.0001305,2]
[419023343,1774771838053,-181.08010149,0.00013081,2]
[419023344,1774771838063,-41.72667593,0.00013083,2]
[419023355,1774771840671,-458.27332407,0.00013083,2]
[419023356,1774771840681,-151.0,0.00013083,2]
[419023357,1774771840690,-255.0,0.00013178,2]
[419023358,1774771840700,-175.68789941,0.0001318,2]
[419023359,1774771840709,-500.0,0.00013198,2]
[419023360,1774771840718,-1090.73,0.00013205,2]
[419023361,1774771840727,-1213.1872525,0.00013216,2]
[419023362,1774771840736,-1500.0,0.00013268,2]
[419023363,1774771840745,-1500.0,0.00013268,2]
[419023364,1774771840754,-1500.0,0.00013268,2]
[419023365,1774771840763,-1500.0,0.00013268,2]
[419023366,1774771840772,-10009.65075244,0.00013275,2]
[419023367,1774771840782,-2351.0,0.00013309,2]
[419023368,1774771840791,-166.66,0.00013327,2]
[419023369,1774771840802,-2000.0,0.000135,4]
[419023370,1774771840811,-800.0,0.000135,4]
[419023371,1774771840820,-4013.74784498,0.00013529,2]
[419023372,1774771840832,-331.79488458,0.00013529,2]
[419023373,1774771840844,-2601.43843768,0.00013529,2]
[419023374,1774771840855,-509.65562623,0.00013529,2]
[419023375,1774771840873,-301.92197159,0.00013529,2]
[419023376,1774771840886,-522.9232407,0.00013529,2]
[419023389,1774771843081,-1728.16874668,0.00013529,2]
[419023390,1774771843090,-2188.21325474,0.000136,4]
[419023391,1774771843480,-1911.78674526,0.000136,4]
[419023392,1774771843490,-1700.0,0.000136,4]
[419023393,1774771843500,-248.294,0.00013616,2]
[419023394,1774771843509,-2709.877,0.00013616,2]
[419023395,1774771843519,-179.55882654,0.00013629,2]
[419023396,1774771843528,-204.783603,0.00013637,2]
[419023397,1774771843538,-321.26249,0.00013637,2]
[419023398,1774771843548,-213.512084,0.00013637,2]
[419023399,1774771843558,-151.0,0.00013695,2]
[419023400,1774771843568,-1523.0,0.00013695,2]
[419023401,1774771843689,-151.0,0.00013695,2]
[419023402,1774771843699,-1523.0,0.00013695,2]
[419023403,1774771843709,-161.81500828,0.00013695,2]
[419023404,1774771843718,-151.0,0.00013695,2]
[419023405,1774771843727,-1523.0,0.00013695,2]
[419023406,1774771843736,-151.0,0.00013695,2]
[419023407,1774771843746,-1523.0,0.00013695,2]
[419023409,1774771843756,-151.0,0.00013695,2]
[419023410,1774771843765,-1523.0,0.00013695,2]
[419023411,1774771843775,-228.45367885,0.00013695,2]
[419023412,1774771843783,-1523.0,0.00013695,2]
[419023413,1774771843793,-1523.0,0.00013695,2]
[419023414,1774771843802,-1523.0,0.00013695,2]
[419023415,1774771843812,-1523.0,0.00013695,2]
[419023416,1774771843821,-1523.0,0.00013695,2]
[419023417,1774771843831,-1523.0,0.00013695,2]
[419023418,1774771843841,-1523.0,0.00013695,2]
[419023419,1774771843851,-1523.0,0.00013695,2]
[419023420,1774771843860,-1523.0,0.00013695,2]
[419023421,1774771843870,-1523.0,0.00013695,2]
[419023422,1774771843879,-1523.0,0.00013695,2]
[419023423,1774771843889,-500.0,0.00013698,2]
[419023424,1774771843899,-500.0,0.00013698,2]
[419023425,1774771843908,-500.0,0.00013698,2]
[419023426,1774771843918,-500.0,0.00013698,2]
[419023427,1774771843928,-500.0,0.00013698,2]
[419023428,1774771843938,-502.30741604,0.00013698,2]
[419023429,1774771843948,-500.0,0.00013698,2]
[419023430,1774771843957,-500.0,0.00013698,2]
[419023431,1774771843967,-500.0,0.00013698,2]
[419023432,1774771843976,-500.0,0.00013698,2]
[419023433,1774771843986,-500.0,0.00013698,2]
[419023434,1774771843996,-500.0,0.00013698,2]
[419023436,1774771844005,-500.0,0.00013698,2]
[419023437,1774771844015,-500.0,0.00013698,2]
[419023438,1774771844025,-504.51779513,0.00013698,2]
[419023439,1774771844035,-500.0,0.00013698,2]
[419023440,1774771844044,-500.0,0.00013698,2]
[419023441,1774771844054,-150.47362468,0.00013698,2]
[419023442,1774771844063,-500.0,0.00013698,2]
[419023443,1774771844073,-500.0,0.00013698,2]
[419023444,1774771844082,-500.0,0.00013698,2]
[419023445,1774771844092,-500.0,0.00013698,2]
[419023446,1774771844102,-385.92546908,0.00013698,2]
[419023447,1774771844111,-500.0,0.00013698,2]
[419023448,1774771844121,-500.0,0.00013698,2]
[419023449,1774771844130,-500.0,0.00013698,2]
[419023450,1774771844140,-520.54835623,0.00013698,2]
[419023451,1774771844149,-500.0,0.00013698,2]
[419023452,1774771844159,-500.0,0.00013698,2]
[419023453,1774771844169,-500.0,0.00013698,2]
[419023454,1774771844178,-500.0,0.00013698,2]
[419023455,1774771844188,-500.0,0.00013698,2]
[419023456,1774771844198,-500.0,0.00013698,2]
[419023457,1774771844207,-500.0,0.00013698,2]
[419023458,1774771844217,-461.59962549,0.00013698,2]
[419023459,1774771844227,-500.0,0.00013698,2]
[419023460,1774771844236,-500.0,0.00013698,2]
[419023461,1774771844246,-500.0,0.00013698,2]
[419023462,1774771844255,-638.95886171,0.00013698,2]
[419023463,1774771844264,-295.34402173,0.00013698,2]
[419023464,1774771844274,-500.0,0.00013698,2]
[419023465,1774771844283,-500.0,0.00013698,2]
[419023466,1774771844292,-150.0,0.00013699,2]
[419023467,1774771844301,-150.0,0.00013699,2]
[419023468,1774771844311,-200.0,0.00013699,2]
[419023469,1774771844319,-500.58525136,0.00013699,2]
[419023470,1774771844328,-500.0,0.00013699,2]
[419023471,1774771844337,-500.0,0.00013699,2]
[419023472,1774771844346,-500.0,0.00013699,2]
[419023473,1774771844356,-500.0,0.00013699,2]
[419023474,1774771844367,-500.942655,0.00013699,2]
[419023475,1774771844376,-501.85734539,0.00013699,2]
[419023476,1774771844386,-560.70514656,0.00013699,2]
[419023477,1774771844395,-500.0,0.00013699,2]
[419023478,1774771844405,-500.0,0.00013699,2]
[419023479,1774771844415,-500.0,0.00013699,2]
[419023480,1774771844425,-505.64072652,0.00013699,2]
[419023481,1774771844434,-502.75954762,0.00013699,2]
[419023482,1774771844444,-500.0,0.00013699,2]
[419023483,1774771844453,-500.0,0.00013699,2]
[419023484,1774771844463,-500.0,0.00013699,2]
[419023485,1774771844471,-500.0,0.00013699,2]
[419023486,1774771844480,-500.0,0.00013699,2]
[419023487,1774771844490,-1979.71839249,0.000137,2]
[419023488,1774771844499,-6200.0,0.000137,5]
[419023489,1774771844509,-166.66,0.00013716,2]
[419023490,1774771844518,-500.0,0.00013746,2]
[419023491,1774771844528,-10009.65075244,0.00013783,2]
[419023492,1774771844537,-8300.0,0.000138,5]
[419023493,1774771844546,-1600.0,0.00013808,2]
[419023494,1774771844555,-2000.0,0.00013816,2]
[419023495,1774771844564,-2000.0,0.00013816,2]
[419023496,1774771844573,-2000.0,0.00013816,2]
[419023497,1774771844583,-817.23526846,0.0001387,2]
[419023498,1774771844592,-2626.86702887,0.00013873,2]
[419023499,1774771844601,-1619.26778298,0.00013873,2]
[419023500,1774771844611,-519.96418621,0.00013873,2]
[419023501,1774771844620,-168.147935,0.00013896,7]
[419023502,1774771844629,-196.137217,0.00013896,7]
[419023503,1774771844639,-10400.0,0.000139,5]
[419023504,1774771844648,-500.0,0.00013914,2]
[419023505,1774771844657,-500.0,0.00013914,2]
[419023506,1774771844666,-232.912545,0.00013914,2]
[419023507,1774771844675,-500.0,0.00013914,2]
[419023508,1774771844684,-301.40953108,0.00013914,2]
[419023509,1774771844693,-518.06092896,0.00013914,2]
[419023510,1774771844702,-269.4579724,0.00013914,2]
[419023511,1774771844711,-48028.70371959,0.00013915,2]
[419023512,1774771844720,-3785.0,0.00013945,2]
[419023513,1774771844729,-524.71510666,0.0001396,2]
[419023514,1774771844739,-2240.0,0.00013968,5]
[419023515,1774771844749,-683.14860908,0.00013969,2]
[419023516,1774771844758,-500.0,0.00013969,2]